bitfinex/quotes_SOLUSD_20241213
["timestamp","ask_amount","ask_price","bid_price","bid_amount"]
[1734100604461,6.2603,223.64,223.53,21.13943556]
[1734100604462,21.13943556,223.61,223.53,21.13943556]
[1734100604685,21.13943556,223.61,223.54,21.13943556]
[1734100604850,0.12549,223.6,223.54,21.13943556]
[1734100605049,21.13943556,223.61,223.54,21.13943556]
[1734100605447,0.12549,223.6,223.54,21.13943556]
[1734100606353,0.25098,223.6,223.53,21.13943556]
[1734100606479,0.25098,223.6,223.54,1.96061138]
[1734100606790,0.25098,223.6,223.53,21.13943556]
[1734100606967,0.25098,223.59,223.52,21.13943556]
[1734100607153,0.25098,223.59,223.53,1.96174345]
[1734100607482,0.25098,223.59,223.52,21.13943556]
[1734100607776,0.25098,223.59,223.53,1.96220206]
[1734100607956,0.25098,223.59,223.52,21.13943556]
[1734100608270,0.12549,223.59,223.54,21.13943556]
[1734100608445,0.12549,223.61,223.55,1.96241542]
[1734100608647,21.13943556,223.63,223.56,1.96227892]
[1734100608857,6.2603,223.64,223.57,21.13943556]
[1734100609075,0.12549,223.64,223.57,21.13943556]
[1734100609307,21.26492556,223.64,223.57,21.13943556]
[1734100609952,0.12549,223.64,223.58,21.13943556]
[1734100610146,0.25098,223.64,223.58,21.13943556]
[1734100610368,0.12549,223.64,223.58,21.13943556]
[1734100610890,0.25098,223.64,223.58,21.13943556]
[1734100611467,27.60393556,223.69,223.62,21.13943556]
[1734100611698,27.60393556,223.69,223.56,11.1826]
[1734100611699,2.0528,223.71,223.64,21.13943556]
[1734100612024,15.0,223.8,223.7,21.13943556]
[1734100612025,23.11743556,223.77,223.7,21.13943556]
[1734100612558,1.978,223.77,223.71,21.13943556]
[1734100612870,0.12549,223.76,223.7,21.13943556]
[1734100613673,21.13943556,223.77,223.7,21.13943556]
[1734100613988,0.12549,223.77,223.7,21.13943556]
[1734100614204,0.25098,223.77,223.7,21.13943556]
[1734100614896,23.17353556,223.82,223.75,21.13943556]
[1734100615088,2.0341,223.82,223.76,21.13943556]
[1734100615266,21.13943556,223.84,223.76,21.13943556]
[1734100615467,21.13943556,223.85,223.78,21.13943556]
[1734100615892,1.9287,223.88,223.78,21.13943556]
[1734100615893,21.13943556,223.86,223.78,21.13943556]
[1734100616212,21.13943556,223.89,223.82,21.13943556]
[1734100616978,21.13943556,223.89,223.81,21.13943556]
[1734100617502,21.13943556,223.89,223.82,21.13943556]
[1734100617682,21.13943556,223.9,223.82,21.13943556]
[1734100617886,21.13943556,223.9,223.83,21.13943556]
[1734100618112,21.13943556,223.91,223.83,21.13943556]
[1734100618308,23.05233556,223.94,223.86,21.13943556]
[1734100618617,0.12549,223.92,223.86,21.13943556]
[1734100618907,21.13943556,223.93,223.86,21.13943556]
[1734100619207,21.13943556,223.94,223.87,21.13943556]
[1734100619450,0.5345105,223.95,223.85,21.13943556]
[1734100619451,21.13943556,223.92,223.85,21.13943556]
[1734100619588,0.12549,223.92,223.86,21.13943556]
[1734100619789,21.13943556,223.93,223.86,21.13943556]
[1734100620191,0.12549,223.92,223.87,21.13943556]
[1734100620716,0.12549,223.92,223.86,21.13943556]
[1734100621304,0.25098,223.92,223.86,21.13943556]
[1734100621394,0.25098,223.92,223.87,21.13943556]
[1734100621395,0.12549,223.92,223.87,21.13943556]
[1734100621601,0.12549,223.93,223.87,21.13943556]
[1734100621984,0.5345105,223.95,223.9,21.13943556]
[1734100622408,0.5345105,223.95,223.91,21.13943556]
[1734100622614,0.12549,223.94,223.88,21.13943556]
[1734100622812,0.12549,223.94,223.79,110.72635838]
[1734100622813,21.13943556,223.91,223.84,21.13943556]
[1734100622997,0.12549,223.91,223.83,22.68536715]
[1734100623198,0.12549,223.91,223.83,20.0]
[1734100623603,0.12549,223.94,223.82,20.0]
[1734100623814,24.027864,223.94,223.82,20.0]
[1734100624236,0.25098,223.9,223.84,21.13943556]
[1734100624412,0.25098,223.9,223.85,21.13943556]
[1734100624709,0.25098,223.9,223.84,21.13943556]
[1734100624913,0.25098,223.9,223.85,21.13943556]
[1734100625109,0.25098,223.9,223.84,21.13943556]
[1734100625310,21.39041556,223.9,223.83,21.13943556]
[1734100625497,0.25098,223.9,223.83,21.13943556]
[1734100625698,21.39041556,223.9,223.83,21.13943556]
[1734100625887,0.25098,223.9,223.84,21.13943556]
[1734100626092,21.39041556,223.9,223.83,21.13943556]
[1734100626315,0.12549,223.88,223.85,21.13943556]
[1734100626512,23.776884,223.91,223.84,21.13943556]
[1734100626817,0.12549,223.9,223.84,21.13943556]
[1734100627012,0.25098,223.9,223.85,21.13943556]
[1734100627207,0.12549,223.9,223.86,21.13943556]
[1734100627424,0.12549,223.92,223.85,21.13943556]
[1734100627618,0.12549,223.91,223.85,21.13943556]
[1734100627916,0.25098,223.89,223.83,21.13943556]
[1734100628793,21.13943556,223.87,223.8,21.13943556]
[1734100629009,21.39041556,223.86,223.79,21.13943556]
[1734100629217,21.13943556,223.85,223.78,21.13943556]
[1734100629422,0.25098,223.86,223.79,21.13943556]
[1734100629722,0.25098,223.85,223.79,21.13943556]
[1734100630015,0.12549,223.85,223.8,21.13943556]
[1734100630519,0.12549,223.85,223.79,21.13943556]
[1734100631592,0.12549,223.85,223.8,21.13943556]
[1734100631797,0.12549,223.88,223.83,21.13943556]
[1734100632027,21.13943556,223.94,223.87,21.13943556]
[1734100632221,0.12549,223.91,223.85,21.13943556]
[1734100632415,21.26492556,223.91,223.84,21.13943556]
[1734100632930,21.13943556,223.92,223.85,21.13943556]
[1734100633119,0.25098,223.91,223.86,21.13943556]
[1734100633329,0.12549,223.91,223.86,21.13943556]
[1734100633627,0.12549,223.91,223.85,21.13943556]
[1734100633926,0.12549,223.89,223.83,21.13943556]
[1734100634121,0.12549,223.88,223.83,21.13943556]
[1734100634348,0.12549,223.88,223.84,21.13943556]
[1734100634505,23.776884,223.91,223.85,21.13943556]
[1734100634706,0.12549,223.9,223.85,21.13943556]
[1734100635032,0.25098,223.9,223.84,21.13943556]
[1734100635600,21.39041556,223.9,223.83,21.13943556]
[1734100635807,0.25098,223.9,223.84,21.13943556]
[1734100637071,21.39041556,223.88,223.81,21.13943556]
[1734100637285,21.26492556,223.86,223.79,21.13943556]
[1734100637417,0.12549,223.86,223.8,21.13943556]
[1734100637611,0.12549,223.86,223.82,21.13943556]
[1734100637828,0.12549,223.87,223.82,21.13943556]
[1734100638322,2.0453,223.89,223.84,21.13943556]
[1734100638509,2.0453,223.89,223.85,21.13943556]
[1734100638708,0.12549,223.91,223.86,21.13943556]
[1734100638906,23.18473556,223.94,223.87,21.13943556]
[1734100639321,15.21358517,223.94,223.87,13.16828517]
[1734100639530,0.12549,223.93,223.87,13.16828517]
[1734100640122,23.902374,223.93,223.88,13.16828517]
[1734100640374,2.0453,223.94,223.89,13.16828517]
[1734100640622,0.5345105,223.95,223.91,13.16828517]
[1734100641231,0.5345105,223.95,223.89,13.16828517]
[1734100641619,0.5345105,223.95,223.83,2.68195568]
[1734100641620,0.5345105,223.95,223.9,13.16828517]
[1734100642439,13.70279567,223.95,223.88,13.16828517]
[1734100642644,0.12549,223.92,223.86,13.16828517]
[1734100642933,0.12549,223.92,223.84,13.16828517]
[1734100642934,0.25098,223.9,223.84,13.16828517]
[1734100643439,24.027864,223.9,223.84,13.16828517]
[1734100645143,23.776884,223.92,223.86,13.16828517]
[1734100645353,0.12549,223.91,223.85,21.07176578]
[1734100645519,0.25098,223.91,223.84,21.07176578]
[1734100646257,44.84864978,223.9,223.83,21.07176578]
[1734100646570,0.12549,223.89,223.84,21.07176578]
[1734100647440,0.12549,223.87,223.81,21.07176578]
[1734100647944,23.902374,223.87,223.81,21.07176578]
[1734100648168,23.902374,223.85,223.78,21.07176578]
[1734100648542,23.902374,223.85,223.8,21.07176578]
[1734100648730,23.11056578,223.89,223.82,21.07176578]
[1734100648947,23.776884,223.88,223.82,21.07176578]
[1734100649133,2.0388,223.89,223.83,21.07176578]
[1734100649331,27.40906578,223.91,223.84,21.07176578]
[1734100649576,6.3373,223.91,223.85,21.07176578]
[1734100649876,27.40906578,223.91,223.83,21.07176578]
[1734100649975,6.3373,223.91,223.86,21.07176578]
[1734100650261,6.3373,223.91,223.85,21.07176578]
[1734100650642,0.12549,223.9,223.85,21.07176578]
[1734100651159,0.12549,223.9,223.84,21.07176578]
[1734100651643,2.0388,223.94,223.86,21.07176578]
[1734100651644,21.07176578,223.93,223.86,21.07176578]
[1734100652172,2.0388,223.94,223.9,21.07176578]
[1734100652363,0.5345105,223.95,223.9,21.07176578]
[1734100652746,0.5345105,223.95,223.89,21.07176578]
[1734100653246,0.5345105,223.95,223.9,1.94184285]
[1734100653465,0.5345105,223.95,223.89,21.07176578]
[1734100653648,0.5345105,223.95,223.9,1.94392634]
[1734100653842,0.5345105,223.95,223.91,1.94392634]
[1734100654048,0.5345105,223.95,223.9,21.07176578]
[1734100654241,0.5345105,223.95,223.91,23.0156571]
[1734100654457,0.5345105,223.95,223.92,1.94563795]
[1734100654643,0.5345105,223.95,223.93,1.94563795]
[1734100654840,0.5345105,223.95,223.91,21.07176578]
[1734100655041,0.5345105,223.95,223.92,1.94561766]
[1734100655262,0.5345105,223.95,223.93,1.94561766]
[1734100655468,0.5345105,223.95,223.94,1.94561766]
[1734100656388,0.5345105,223.95,223.94,23.01738344]
[1734100662561,0.5345105,223.95,223.94,23.02377452]
[1734100663954,0.5345105,223.95,223.94,1.95200874]
[1734100664343,0.5345105,223.95,223.93,21.07176578]
[1734100664753,0.5345105,223.95,223.94,23.02417828]
[1734100665059,0.5345105,223.95,223.94,23.02434912]
[1734100665252,0.5345105,223.95,223.94,13.16069787]
[1734100666031,0.5345105,223.95,223.94,15.1131947]
[1734100666572,0.5345105,223.95,223.94,13.16069787]
[1734100667111,0.5345105,223.95,223.94,15.11262011]
[1734100667392,0.5345105,223.95,223.94,13.16069787]
[1734100667564,0.5345105,223.95,223.94,15.11227549]
[1734100668481,0.5345105,223.95,223.94,15.11133048]
[1734100669047,0.5345105,223.95,223.94,13.16069787]
[1734100672986,0.5345105,223.95,223.93,13.16069787]
[1734100673872,0.5345105,223.95,223.94,13.16069787]
[1734100675872,0.5345105,223.95,223.93,13.16069787]
[1734100676078,0.5345105,223.95,223.94,13.16069787]
[1734100678516,0.5345105,223.95,223.88,20.0]
[1734100678685,0.5345105,223.95,223.93,13.16069787]
[1734100679389,0.5345105,223.95,223.9,13.16069787]
[1734100679591,0.5345105,223.95,223.91,13.16069787]
[1734100683145,0.5345105,223.95,223.86,2.66044308]
[1734100683146,0.12549,223.92,223.86,13.16069787]
[1734100683332,0.12549,223.92,223.87,13.16069787]
[1734100683514,0.25098,223.92,223.86,13.16069787]
[1734100683735,0.12549,223.93,223.9,13.16069787]
[1734100684186,0.5345105,223.95,223.92,13.16069787]
[1734100684942,0.5345105,223.95,223.9,13.16069787]
[1734100685250,0.5345105,223.95,223.87,13.16069787]
[1734100685251,13.28618787,223.94,223.87,13.16069787]
[1734100685407,0.12549,223.93,223.88,1.95619315]
[1734100685609,0.25098,223.94,223.88,13.16069787]
[1734100685834,0.12549,223.94,223.89,13.16069787]
[1734100686936,0.5345105,223.95,223.9,13.16069787]
[1734100687310,0.5345105,223.95,223.85,20.0]
[1734100687513,0.25098,223.94,223.87,8.42631198]
[1734100688419,0.25098,223.94,223.88,8.42631198]
[1734100688420,24.027864,223.94,223.88,8.42631198]
[1734100689825,24.027864,223.94,223.87,10.38285662]
[1734100690026,32.45417598,223.94,223.87,8.42631198]
[1734100690423,31.95417598,223.94,223.87,8.42631198]
[1734100690635,0.12549,223.93,223.87,8.42631198]
[1734100691137,0.12549,223.93,223.86,8.42631198]
[1734100691436,8.55180198,223.93,223.86,8.42631198]
[1734100691920,0.12549,223.93,223.87,8.42631198]
[1734100692320,0.12549,223.93,223.89,8.42631198]
[1734100692655,0.12549,223.94,223.9,8.42631198]
[1734100692814,0.25098,223.94,223.9,8.42631198]
[1734100693020,0.25098,223.94,223.81,0.66998928]
[1734100693021,0.25098,223.94,223.89,8.42631198]
[1734100694445,0.25098,223.94,223.88,8.42631198]
[1734100694618,0.25098,223.9,223.8,2.63813438]
[1734100694822,8.42631198,223.87,223.77,2.68857463]
[1734100695122,8.67729198,223.86,223.79,8.42631198]
[1734100695555,8.67729198,223.86,223.77,2.0186]
[1734100695556,0.25098,223.86,223.8,8.42631198]
[1734100695842,0.25098,223.86,223.81,8.42631198]
[1734100696147,11.1642,223.93,223.83,8.42631198]
[1734100696350,23.776884,223.92,223.86,8.42631198]
[1734100696625,0.25098,223.91,223.87,8.42631198]
[1734100697219,8.67729198,223.92,223.85,8.42631198]
[1734100697437,8.67729198,223.92,223.86,1.9587506]
[1734100697633,8.67729198,223.92,223.85,8.42631198]
[1734100697947,8.67729198,223.92,223.86,1.95853964]
[1734100698154,8.55180198,223.9,223.83,8.42631198]
[1734100698325,0.25098,223.9,223.84,10.38460005]
[1734100698524,0.25098,223.9,223.85,1.95828807]
[1734100698823,0.25098,223.9,223.86,1.95828807]
[1734100699028,0.25098,223.9,223.85,1.95828807]
[1734100699222,8.67729198,223.9,223.86,1.95828807]
[1734100699449,8.67729198,223.9,223.84,1.95828807]
[1734100699653,0.25098,223.9,223.84,8.42631198]
[1734100699857,0.25098,223.89,223.83,8.42631198]
[1734100700026,24.027864,223.89,223.82,8.42631198]
[1734100700495,0.12549,223.87,223.77,2.0186]
[1734100700504,0.25098,223.86,223.8,8.42631198]
[1734100700743,8.42631198,223.85,223.81,1.95692349]
[1734100700957,24.027864,223.86,223.8,8.42631198]
[1734100701839,0.12549,223.88,223.81,10.38199406]
[1734100702049,0.12549,223.88,223.74,47.5565671]
[1734100702050,23.902374,223.88,223.82,8.42631198]
[1734100702242,0.12549,223.87,223.82,8.42631198]
[1734100702562,0.12549,223.87,223.81,8.42631198]
[1734100702747,0.12549,223.87,223.74,47.5565671]
[1734100702748,0.12549,223.85,223.8,8.42631198]
[1734100702944,0.12549,223.85,223.81,1.95550132]
[1734100703148,0.12549,223.85,223.8,8.42631198]
[1734100703332,0.12549,223.87,223.8,8.42631198]
[1734100703642,0.12549,223.87,223.81,8.42631198]
[1734100704060,6.52869218,223.95,223.86,8.42631198]
[1734100704276,0.5345105,223.95,223.91,8.42631198]
[1734100704471,0.5345105,223.95,223.92,8.42631198]
[1734100704775,0.5345105,223.95,223.91,8.42631198]
[1734100704984,0.12549,223.94,223.91,8.42631198]
[1734100705275,0.12549,223.94,223.9,8.42631198]
[1734100705962,0.25098,223.94,223.89,8.42631198]
[1734100706766,24.027864,223.94,223.88,8.42631198]
[1734100710472,24.027864,223.94,223.89,8.42631198]
[1734100711448,24.027864,223.94,223.88,8.42631198]
[1734100712163,0.5345105,223.95,223.91,8.42631198]
[1734100713566,0.5345105,223.95,223.86,1.95742012]
[1734100713771,0.5345105,223.95,223.91,8.42631198]
[1734100716143,0.5345105,223.95,223.92,8.42631198]
[1734100716970,0.5345105,223.95,223.94,8.42631198]
[1734100717352,0.5345105,223.95,223.91,1.9579969]
[1734100717684,0.5345105,223.95,223.91,8.42631198]
[1734100718360,0.5345105,223.95,223.93,8.42631198]
[1734100718547,0.5345105,223.95,223.94,8.42631198]
[1734100718745,0.5345105,223.95,223.93,8.42631198]
[1734100719467,0.5345105,223.95,223.94,8.42631198]
[1734100719668,0.5345105,223.95,223.93,8.42631198]
[1734100721447,0.5345105,223.95,223.92,8.42631198]
[1734100721791,0.5345105,223.95,223.9,8.42631198]
[1734100721947,0.5345105,223.95,223.91,10.38403251]
[1734100722146,0.5345105,223.95,223.91,8.42631198]
[1734100723231,0.5345105,223.95,223.92,8.42631198]
[1734100723483,0.5345105,223.95,223.9,8.42631198]
[1734100723766,0.25098,223.94,223.89,8.42631198]
[1734100723986,0.25098,223.94,223.88,8.42631198]
[1734100724186,0.25098,223.94,223.89,1.95739252]
[1734100724354,0.25098,223.94,223.89,8.42631198]
[1734100724745,0.25098,223.94,223.9,8.42631198]
[1734100725276,0.25098,223.94,223.91,8.42631198]
[1734100725452,0.5345105,223.95,223.91,8.42631198]
[1734100726871,0.5345105,223.95,223.9,8.42631198]
[1734100729598,0.5345105,223.95,223.81,1.5797]
[1734100729599,0.12549,223.9,223.81,1.5797]
[1734100729847,8.55180198,223.9,223.83,8.42631198]
[1734100730015,0.25098,223.9,223.84,1.95723674]
[1734100730204,0.25098,223.9,223.85,1.95723674]
[1734100730502,0.25098,223.9,223.81,1.5797]
[1734100730503,8.67729198,223.9,223.81,1.5797]
[1734100730631,0.25098,223.88,223.82,1.95770956]
[1734100730769,8.67729198,223.88,223.81,8.42631198]
[1734100730986,8.67729198,223.88,223.82,1.95779598]
[1734100731185,8.67729198,223.88,223.83,1.95779598]
[1734100731370,0.25098,223.88,223.82,8.42631198]
[1734100731578,0.12549,223.89,223.84,8.42631198]
[1734100731777,23.902374,223.93,223.87,8.42631198]
[1734100732370,0.12549,223.92,223.87,8.42631198]
[1734100733453,0.12549,223.92,223.86,8.42631198]
[1734100735070,0.12549,223.92,223.87,1.95713263]
[1734100735272,0.12549,223.92,223.86,8.42631198]
[1734100738182,0.12549,223.92,223.87,1.95712636]
[1734100738378,0.12549,223.92,223.86,8.42631198]
[1734100740697,0.12549,223.92,223.85,8.42631198]
[1734100740883,8.67729198,223.9,223.83,8.42631198]
[1734100741114,8.67729198,223.9,223.84,1.95776866]
[1734100741281,8.55180198,223.88,223.75,25.37786442]
[1734100741616,8.42631198,223.87,223.8,8.42631198]
[1734100741822,0.12549,223.87,223.81,10.38379183]
[1734100742168,0.25098,223.87,223.81,8.42631198]
[1734100742381,0.25098,223.87,223.82,1.95747277]
[1734100742562,0.25098,223.85,223.79,8.42631198]
[1734100743120,0.25098,223.85,223.8,1.95798386]
[1734100743420,0.25098,223.85,223.8,1.95743962]
[1734100743630,8.67729198,223.85,223.8,1.95743962]
[1734100743928,8.67729198,223.85,223.79,10.3837516]
[1734100743929,0.25098,223.85,223.79,10.3837516]
[1734100744098,0.25098,223.85,223.8,1.95743962]
[1734100744292,0.25098,223.85,223.71,35.49193694]
[1734100744505,0.25098,223.85,223.79,8.42631198]
[1734100745008,0.25098,223.85,223.82,8.42631198]
[1734100745214,28.42631198,223.9,223.83,8.42631198]
[1734100745392,8.42631198,223.92,223.85,8.42631198]
[1734100745816,0.12549,223.91,223.85,8.42631198]
[1734100746597,24.027864,223.91,223.85,8.42631198]
[1734100746823,0.12549,223.89,223.83,8.42631198]
[1734100747125,0.25098,223.89,223.84,8.42631198]
[1734100747618,0.12549,223.9,223.84,8.42631198]
[1734100747824,0.25098,223.9,223.84,8.42631198]
[1734100748394,0.25098,223.91,223.85,8.42631198]
[1734100748504,9.99561198,223.94,223.87,8.42631198]
[1734100749526,1.5693,223.94,223.82,1.95652285]
[1734100749743,0.5345105,223.95,223.9,8.42631198]
[1734100749929,0.5345105,223.95,223.92,8.42631198]
[1734100750223,0.5345105,223.95,223.85,35.99283248]
[1734100750224,0.5345105,223.95,223.87,1.95652285]
[1734100750434,0.5345105,223.95,223.85,1.6177]
[1734100750435,8.42631198,223.93,223.86,8.42631198]
[1734100750730,8.42631198,223.93,223.8,13.74601748]
[1734100750731,0.12549,223.9,223.87,1.95677152]
[1734100750931,0.12549,223.9,223.85,1.95668308]
[1734100751109,0.12549,223.9,223.86,1.95668308]
[1734100751418,0.12549,223.91,223.86,8.42631198]
[1734100751715,0.12549,223.93,223.87,8.42631198]
[1734100752224,0.5345105,223.95,223.9,8.42631198]
[1734100752432,0.5345105,223.95,223.91,8.42631198]
[1734100753104,0.5345105,223.95,223.88,1.95669802]
[1734100753310,0.12549,223.94,223.89,1.95669802]
[1734100753629,0.12549,223.94,223.9,8.42631198]
[1734100754539,0.25098,223.94,223.89,8.42631198]
[1734100755527,0.25098,223.94,223.88,10.3824955]
[1734100755718,0.25098,223.94,223.88,8.42631198]
[1734100758433,0.25098,223.94,223.89,8.42631198]
[1734100758931,0.25098,223.94,223.87,8.42631198]
[1734100759334,0.25098,223.94,223.88,8.42631198]
[1734100760025,0.25098,223.94,223.87,8.42631198]
[1734100760230,0.25098,223.94,223.88,1.95613145]
[1734100760432,0.25098,223.94,223.87,8.42631198]
[1734100760961,8.55180198,223.92,223.83,1.95632892]
[1734100761223,0.12549,223.89,223.84,1.95632892]
[1734100761324,8.55180198,223.89,223.85,1.95632892]
[1734100761558,0.12549,223.89,223.86,1.95632892]
[1734100761844,0.12549,223.89,223.84,1.95632892]
[1734100762028,0.12549,223.89,223.85,1.95600549]
[1734100762224,0.12549,223.89,223.86,1.95600549]
[1734100762544,0.12549,223.89,223.82,8.42631198]
[1734100762845,8.42631198,223.92,223.85,8.42631198]
[1734100763046,0.12549,223.92,223.86,8.42631198]
[1734100763237,0.5345105,223.95,223.89,8.42631198]
[1734100763715,0.12549,223.94,223.89,8.42631198]
[1734100763959,0.5345105,223.95,223.9,8.42631198]
[1734100764204,0.5345105,223.95,223.91,8.42631198]
[1734100764422,0.5345105,223.95,223.92,8.42631198]
[1734100764567,0.5345105,223.95,223.93,8.42631198]
[1734100764869,0.5345105,223.95,223.94,8.42631198]
[1734100765160,0.5345105,223.95,223.93,8.42631198]
[1734100765520,0.5345105,223.95,223.94,8.42631198]
[1734100766531,0.5345105,223.95,223.93,8.42631198]
[1734100766734,0.5345105,223.95,223.94,8.42631198]
[1734100767977,0.5345105,223.95,223.94,1.95571924]
[1734100768551,0.5345105,223.95,223.93,8.42631198]
[1734100768854,0.5345105,223.95,223.92,8.42631198]
[1734100769061,0.5345105,223.95,223.93,8.42631198]
[1734100769353,0.5345105,223.95,223.92,10.38155237]
[1734100769566,0.5345105,223.95,223.92,8.42631198]
[1734100770130,0.5345105,223.95,223.93,8.42631198]
[1734100771262,0.5345105,223.95,223.94,8.42631198]
[1734100773572,81.6,224.16,223.97,20.0]
[1734100773573,1.6619,224.12,223.97,20.0]
[1734100773857,1.6619,224.12,224.06,8.42631198]
[1734100774546,8.42631198,224.1,224.03,8.42631198]
[1734100775062,11.6871105,224.17,224.03,8.42631198]
[1734100775063,0.12549,224.11,224.03,8.42631198]
[1734100775367,20.0,224.1,224.04,8.42631198]
[1734100775972,28.42631198,224.1,224.03,8.42631198]
[1734100776754,0.12549,224.11,224.05,8.42631198]
[1734100776974,8.42631198,224.1,224.03,8.42631198]
[1734100777283,8.42631198,224.09,224.02,8.42631198]
[1734100777485,8.42631198,224.09,224.01,8.42631198]
[1734100777782,8.42631198,224.09,224.02,8.42631198]
[1734100777949,8.42631198,224.1,224.03,8.42631198]
[1734100778853,0.12549,224.1,224.04,8.42631198]
[1734100779061,0.25098,224.1,224.04,8.42631198]
[1734100779574,8.42631198,224.09,224.02,8.42631198]
[1734100780083,0.12549,224.1,224.0,1.5519]
[1734100780084,8.42631198,224.08,224.0,1.5519]
[1734100780282,8.42631198,224.08,224.01,8.42631198]
[1734100780584,0.12549,224.09,224.03,8.42631198]
[1734100780796,31.1538,224.14,224.0,1.5519]
[1734100780963,8.42631198,224.15,224.08,8.42631198]
[1734100782544,8.42631198,224.14,224.08,8.42631198]
[1734100782754,20.0,224.16,224.09,8.42631198]
[1734100782952,0.5345105,224.17,224.12,8.42631198]
[1734100783401,0.5345105,224.17,224.11,8.42631198]
[1734100783957,0.5345105,224.17,224.12,8.42631198]
[1734100784159,0.5345105,224.17,224.11,8.42631198]
[1734100785656,8.96082248,224.17,224.1,8.42631198]
[1734100786456,8.42631198,224.16,224.09,8.42631198]
[1734100786774,0.5345105,224.17,224.1,8.42631198]
[1734100786992,0.12549,224.16,224.1,8.42631198]
[1734100787579,8.55180198,224.16,224.09,8.42631198]
[1734100788556,0.12549,224.16,224.1,8.42631198]
[1734100788986,0.5345105,224.17,224.13,8.42631198]
[1734100790460,0.5345105,224.17,224.15,8.42631198]
[1734100790661,0.5345105,224.17,224.16,8.42631198]
[1734100790881,0.5345105,224.17,224.15,8.42631198]
[1734100791181,0.5345105,224.17,224.14,8.42631198]
[1734100792163,0.5345105,224.17,224.15,8.42631198]
[1734100793578,0.5345105,224.17,224.16,8.42631198]
[1734100793887,0.5345105,224.17,224.15,8.42631198]
[1734100794095,0.5345105,224.17,224.16,8.42631198]
[1734100795283,0.5345105,224.17,224.12,11.82374043]
[1734100795583,0.5345105,224.17,224.16,8.42631198]
[1734100797463,0.5345105,224.17,224.16,9.09519093]
[1734100798891,0.5345105,224.17,224.16,8.42631198]
[1734100799460,0.5345105,224.17,224.12,0.66891298]
[1734100799728,0.5345105,224.17,224.16,8.42631198]
[1734100800862,20.0,224.3,224.16,42.1315599]
[1734100801072,1.5924,224.32,224.27,8.42631198]
[1734100802816,8.96082248,224.4,224.31,8.42631198]
[1734100803097,8.96082248,224.4,224.33,8.42631198]
[1734100803669,8.42631198,224.39,224.32,8.42631198]
[1734100803874,8.42631198,224.38,224.31,8.42631198]
[1734100804200,8.42631198,224.36,224.29,8.42631198]
[1734100804694,8.42631198,224.35,224.29,8.42631198]
[1734100804866,8.42631198,224.34,224.27,8.42631198]
[1734100805290,8.42631198,224.33,224.27,8.42631198]
[1734100805479,8.42631198,224.33,224.26,8.42631198]
[1734100805688,8.42631198,224.3,224.23,8.42631198]
[1734100806101,23.902374,224.28,224.13,1.6098]
[1734100806276,8.42631198,224.24,224.17,8.42631198]
[1734100806471,8.42631198,224.23,224.17,8.42631198]
[1734100806690,8.42631198,224.23,224.16,8.42631198]
[1734100807006,8.42631198,224.22,224.13,1.6098]
[1734100807174,20.0,224.25,224.18,8.42631198]
[1734100807373,28.42631198,224.25,224.13,1.6098]
[1734100807678,8.42631198,224.24,224.17,8.42631198]
[1734100807882,8.42631198,224.24,224.13,1.6098]
[1734100808076,8.42631198,224.24,224.18,8.42631198]
[1734100808395,20.0,224.25,224.18,8.42631198]
[1734100808755,8.42631198,224.24,224.17,8.42631198]
[1734100809197,13.13316858,224.24,224.17,13.13316858]
[1734100809585,13.13316858,224.23,224.09,11.824827]
[1734100809793,13.13316858,224.19,224.12,13.13316858]
[1734100810182,13.13316858,224.2,224.13,13.13316858]
[1734100810389,13.13316858,224.21,224.14,13.13316858]
[1734100810579,21.23616858,224.22,224.15,13.13316858]
[1734100810787,20.0,224.25,224.19,13.13316858]
[1734100810986,20.0,224.24,224.19,13.13316858]
[1734100811313,24.027864,224.26,224.2,13.13316858]
[1734100811681,37.16103258,224.26,224.19,13.13316858]
[1734100811871,13.13316858,224.25,224.17,13.13316858]
[1734100812278,23.902374,224.23,224.17,13.13316858]
[1734100812588,13.13316858,224.21,224.14,13.13316858]
[1734100812791,13.13316858,224.2,224.13,13.13316858]
[1734100813343,13.13316858,224.19,224.12,13.13316858]
[1734100813681,13.13316858,224.21,224.14,13.13316858]
[1734100813877,37.03554258,224.2,224.13,13.13316858]
[1734100814493,13.13316858,224.19,224.12,13.13316858]
[1734100814907,13.13316858,224.2,224.13,13.13316858]
[1734100815211,13.13316858,224.19,224.12,13.13316858]
[1734100815394,13.13316858,224.18,224.11,13.13316858]
[1734100815581,11.1492,224.23,224.1,13.13316858]
[1734100815582,13.13316858,224.17,224.1,13.13316858]
[1734100816770,13.13316858,224.15,224.08,13.13316858]
[1734100816903,13.13316858,224.15,224.05,1.5889]
[1734100816904,13.13316858,224.15,224.09,13.13316858]
[1734100817295,13.13316858,224.16,224.09,13.13316858]